[Event "Chpt France Universitaire 2024"]
[Site "Bastia, France"]
[Date "2024.04.07"]
[Round "7.4"]
[White "Roux, Baptiste"]
[Black "Cahen, Alexis"]
[Result "1-0"]
[TimeControl "15min+5s"]
[WhiteElo "2361"]
[BlackElo "2060"]

1. e4 {[%clk 00:14:56]} {[%emt 00:00:13]} c5 {[%clk 00:15:05]} {[%emt
00:00:03]} 2. Nf3 {[%clk 00:14:56]} {[%emt 00:00:02]} d6 {[%clk 00:15:05]}
{[%emt 00:00:02]} 3. d4 {[%clk 00:14:56]} {[%emt 00:00:02]} cxd4 {[%clk
00:15:05]} {[%emt 00:00:02]} 4. Nxd4 {[%clk 00:14:56]} {[%emt 00:00:02]} Nf6
{[%clk 00:15:05]} {[%emt 00:00:02]} 5. Nc3 {[%clk 00:14:56]} {[%emt 00:00:02]}
g6 {[%clk 00:15:05]} {[%emt 00:00:02]} 6. Be3 {[%clk 00:14:56]} {[%emt
00:00:03]} Bg7 {[%clk 00:15:05]} {[%emt 00:00:02]} 7. f3 {[%clk 00:14:56]}
{[%emt 00:00:02]} Nc6 {[%clk 00:15:05]} {[%emt 00:00:02]} 8. Qd2 {[%clk
00:14:56]} {[%emt 00:00:02]} O-O {[%clk 00:14:54]} {[%emt 00:00:16]} 9. Bc4
{[%clk 00:14:56]} {[%emt 00:00:05]} Bd7 {[%clk 00:14:52]} {[%emt 00:00:07]} 10.
h4 {[%clk 00:14:56]} {[%emt 00:00:03]} Ne5 {[%clk 00:14:51]} {[%emt 00:00:06]}
11. Bb3 {[%clk 00:14:56]} {[%emt 00:00:01]} Qa5 {[%clk 00:14:47]} {[%emt
00:00:09]} 12. O-O-O {[%clk 00:13:42]} {[%emt 00:01:19]} Rfc8 {[%clk 00:14:24]}
{[%emt 00:00:28]} 13. g4 {[%clk 00:12:48]} {[%emt 00:01:00]} Nc4 {[%clk
00:13:23]} {[%emt 00:01:06]} 14. Bxc4 {[%clk 00:12:48]} {[%emt 00:00:05]} Rxc4
{[%clk 00:13:23]} {[%emt 00:00:01]} 15. h5 {[%clk 00:11:27]} {[%emt 00:01:27]}
Rac8 {[%clk 00:10:53]} {[%emt 00:02:34]} 16. Kb1 {[%clk 00:10:39]} {[%emt
00:00:53]} Bxg4 {[%clk 00:08:23]} {[%emt 00:02:35]} 17. hxg6 {[%clk 00:09:58]}
{[%emt 00:00:47]} hxg6 {[%clk 00:06:54]} {[%emt 00:01:34]} 18. Nb3 {[%clk
00:06:10]} {[%emt 00:03:53]} Qa6 {[%clk 00:06:30]} {[%emt 00:00:29]} 19. Bh6
{[%clk 00:06:05]} {[%emt 00:00:10]} Bh5 {[%clk 00:05:50]} {[%emt 00:00:44]} 20.
Bxg7 {[%clk 00:06:04]} {[%emt 00:00:07]} Kxg7 {[%clk 00:05:50]} {[%emt
00:00:02]} 21. Rdg1 {[%clk 00:05:35]} {[%emt 00:00:34]} b5 {[%clk 00:03:07]}
{[%emt 00:02:48]} 22. Qd3 {[%clk 00:04:53]} {[%emt 00:00:47]} b4 {[%clk
00:02:16]} {[%emt 00:00:56]} 23. Nd5 {[%clk 00:04:41]} {[%emt 00:00:17]} Nxd5
{[%clk 00:01:44]} {[%emt 00:00:37]} 24. exd5 {[%clk 00:04:35]} {[%emt
00:00:10]} Kf8 {[%clk 00:01:07]} {[%emt 00:00:42]} 25. Nd4 {[%clk 00:03:07]}
{[%emt 00:01:33]} Qb6 {[%clk 00:00:49]} {[%emt 00:00:23]} 26. Nc6 {[%clk
00:02:00]} {[%emt 00:01:13]} R8xc6 {[%clk 00:00:49]} {[%emt 00:00:01]} 27. dxc6
{[%clk 00:02:00]} {[%emt 00:00:01]} Qxc6 {[%clk 00:00:49]} {[%emt 00:00:01]} 28.
Rh2 {[%clk 00:01:50]} {[%emt 00:00:15]} Qc5 {[%clk 00:00:35]} {[%emt 00:00:20]}
29. Re1 {[%clk 00:01:42]} {[%emt 00:00:13]} Qd4 {[%clk 00:00:33]} {[%emt
00:00:07]} 30. Qe2 {[%clk 00:01:26]} {[%emt 00:00:22]} Rc7 {[%clk 00:00:33]}
{[%emt 00:00:02]} 31. Qb5 {[%clk 00:01:21]} {[%emt 00:00:10]} Qc5 {[%clk
00:00:29]} {[%emt 00:00:09]} 32. Qd3 {[%clk 00:01:18]} {[%emt 00:00:07]} a5
{[%clk 00:00:23]} {[%emt 00:00:11]} 33. Qe4 {[%clk 00:01:18]} {[%emt 00:00:03]}
Qc4 {[%clk 00:00:11]} {[%emt 00:00:17]} 34. Qa8+ {[%clk 00:01:17]} {[%emt
00:00:07]} Kg7 {[%clk 00:00:11]} {[%emt 00:00:03]} 35. Qxa5 {[%clk 00:01:17]}
{[%emt 00:00:03]} Bxf3 {[%clk 00:00:09]} {[%emt 00:00:07]} 36. Qg5 {[%clk
00:01:17]} Bh5 {[%clk 00:00:08]} {[%emt 00:00:06]} 37. Rxh5 {[%clk 00:01:17]}
{[%emt 00:00:04]} Qxc2+ {[%clk 00:00:08]} 38. Ka1 {[%clk 00:01:17]} {[%emt
00:00:02]} Qc1+ {[%emt 00:00:08]} 39. Rxc1 {[%clk 00:01:17]} {[%emt 00:00:02]}
Rxc1+ {[%clk 00:00:06]} {[%emt 00:00:01]} 40. Qxc1 {[%clk 00:01:17]} {[%emt
00:00:02]} 1-0

[Event "Chpt France Universitaire 2024"]
[Site "Bastia, France"]
[Date "2024.04.07"]
[Round "7.5"]
[White "Gryshko, Vitalii"]
[Black "Defromont, Benjamin"]
[Result "1-0"]
[TimeControl "15min+5s"]
[WhiteElo "2288"]
[BlackElo "2393"]

1. a3 {[%clk 00:15:05]} {[%emt 00:00:02]} Nf6 {[%clk 00:13:32]} {[%emt
00:01:39]} 2. Nf3 {[%clk 00:15:03]} {[%emt 00:00:06]} c5 {[%clk 00:13:26]}
{[%emt 00:00:11]} 3. c4 {[%clk 00:14:34]} {[%emt 00:00:34]} Nc6 {[%clk
00:13:25]} {[%emt 00:00:06]} 4. Nc3 {[%clk 00:14:29]} {[%emt 00:00:10]} e5
{[%clk 00:11:31]} {[%emt 00:01:59]} 5. d3 {[%clk 00:14:29]} {[%emt 00:00:05]}
d6 {[%clk 00:11:31]} {[%emt 00:00:01]} 6. Bg5 {[%clk 00:14:29]} {[%emt
00:00:01]} Be7 {[%clk 00:11:31]} {[%emt 00:00:05]} 7. Bxf6 {[%clk 00:14:29]}
{[%emt 00:00:04]} Bxf6 {[%clk 00:11:31]} {[%emt 00:00:01]} 8. g3 {[%clk
00:14:19]} {[%emt 00:00:15]} Be6 {[%clk 00:11:30]} {[%emt 00:00:06]} 9. Bg2
{[%clk 00:14:18]} {[%emt 00:00:06]} Qd7 {[%clk 00:11:25]} {[%emt 00:00:10]} 10.
Rb1 {[%clk 00:12:52]} {[%emt 00:01:31]} a5 {[%clk 00:09:31]} {[%emt 00:01:59]}
11. Nd2 {[%clk 00:12:20]} {[%emt 00:00:37]} O-O {[%clk 00:09:30]} {[%emt
00:00:06]} 12. Nd5 {[%clk 00:10:46]} {[%emt 00:01:39]} Bd8 {[%clk 00:09:30]}
{[%emt 00:00:01]} 13. O-O {[%clk 00:10:30]} {[%emt 00:00:20]} f5 {[%clk
00:09:29]} {[%emt 00:00:07]} 14. e3 {[%clk 00:10:18]} {[%emt 00:00:17]} Ne7
{[%clk 00:08:12]} {[%emt 00:01:22]} 15. b4 {[%clk 00:10:01]} {[%emt 00:00:22]}
cxb4 {[%clk 00:07:30]} {[%emt 00:00:48]} 16. axb4 {[%clk 00:09:49]} {[%emt
00:00:16]} Nxd5 {[%clk 00:07:30]} {[%emt 00:00:02]} 17. cxd5 {[%clk 00:09:05]}
{[%emt 00:00:49]} Bf7 {[%clk 00:07:30]} {[%emt 00:00:03]} 18. b5 {[%clk
00:07:53]} {[%emt 00:01:17]} Rc8 {[%clk 00:06:35]} {[%emt 00:01:00]} 19. Qa4
{[%clk 00:07:53]} Rc3 {[%clk 00:06:20]} {[%emt 00:00:20]} 20. Rb3 {[%clk
00:06:40]} {[%emt 00:01:18]} Rc5 {[%clk 00:06:20]} {[%emt 00:00:01]} 21. Rb2
{[%clk 00:04:19]} {[%emt 00:02:26]} Bxd5 {[%clk 00:05:51]} {[%emt 00:00:35]} 22.
Bxd5+ {[%clk 00:03:24]} {[%emt 00:00:59]} Rxd5 {[%clk 00:05:51]} {[%emt
00:00:02]} 23. Qc4 {[%clk 00:03:24]} Qf7 {[%clk 00:05:45]} {[%emt 00:00:10]} 24.
Nb3 {[%clk 00:03:24]} e4 {[%clk 00:04:21]} {[%emt 00:01:30]} 25. d4 {[%clk
00:03:24]} {[%emt 00:00:04]} Bb6 {[%clk 00:04:16]} {[%emt 00:00:11]} 26. Ra1
{[%clk 00:02:33]} {[%emt 00:00:56]} g5 {[%clk 00:04:02]} {[%emt 00:00:19]} 27.
Nd2 {[%clk 00:01:21]} {[%emt 00:01:17]} Kg7 {[%clk 00:03:26]} {[%emt 00:00:41]}
28. Nb1 {[%clk 00:00:40]} {[%emt 00:00:46]} f4 {[%clk 00:03:07]} {[%emt
00:00:24]} 29. Nc3 {[%clk 00:00:34]} {[%emt 00:00:10]} Rf5 {[%clk 00:03:03]}
{[%emt 00:00:09]} 30. Qxf7+ {[%clk 00:00:34]} {[%emt 00:00:04]} R8xf7 {[%clk
00:02:14]} {[%emt 00:00:55]} 31. g4 {[%clk 00:00:34]} {[%emt 00:00:04]} R5f6
{[%clk 00:01:34]} {[%emt 00:00:45]} 32. Nd5 {[%clk 00:00:34]} Bd8 {[%clk
00:01:20]} {[%emt 00:00:20]} 33. Nxf6 {[%clk 00:00:34]} {[%emt 00:00:02]} Kxf6
{[%clk 00:01:15]} {[%emt 00:00:11]} 34. b6 {[%clk 00:00:33]} {[%emt 00:00:06]}
Ke6 {[%clk 00:01:10]} {[%emt 00:00:09]} 35. Rxa5 {[%clk 00:00:33]} {[%emt
00:00:05]} fxe3 {[%clk 00:01:10]} {[%emt 00:00:02]} 36. fxe3 {[%clk 00:00:23]}
{[%emt 00:00:15]} Rf3 {[%clk 00:01:10]} 37. Rb3 {[%clk 00:00:23]} {[%emt
00:00:03]} Kd7 {[%clk 00:00:38]} {[%emt 00:00:38]} 38. Rf5 {[%clk 00:00:21]}
{[%emt 00:00:06]} Rxf5 {[%clk 00:00:24]} {[%emt 00:00:18]} 39. gxf5 {[%clk
00:00:21]} Ke7 {[%clk 00:00:24]} 40. Rb5 {[%clk 00:00:20]} {[%emt 00:00:06]}
Kf6 {[%clk 00:00:24]} {[%emt 00:00:04]} 41. Rd5 {[%clk 00:00:20]} {[%emt
00:00:01]} Be7 {[%clk 00:00:24]} {[%emt 00:00:03]} 42. Kg2 {[%clk 00:00:20]}
{[%emt 00:00:05]} h5 {[%clk 00:00:24]} {[%emt 00:00:02]} 43. Kg3 {[%clk
00:00:20]} {[%emt 00:00:03]} Kf7 {[%clk 00:00:24]} {[%emt 00:00:05]} 44. Ra5
{[%clk 00:00:20]} Kf6 {[%clk 00:00:24]} {[%emt 00:00:06]} 45. Ra7 {[%clk
00:00:20]} {[%emt 00:00:02]} Kxf5 {[%clk 00:00:24]} {[%emt 00:00:01]} 46. Rxb7
{[%clk 00:00:20]} Bd8 {[%clk 00:00:20]} {[%emt 00:00:09]} 47. Rb8 {[%clk
00:00:20]} {[%emt 00:00:01]} Bf6 {[%clk 00:00:20]} 48. Rf8 {[%clk 00:00:20]}
h4+ {[%clk 00:00:20]} {[%emt 00:00:01]} 49. Kg2 {[%clk 00:00:20]} Ke6 {[%clk
00:00:20]} {[%emt 00:00:03]} 50. Rxf6+ {[%clk 00:00:20]} {[%emt 00:00:02]} 1-0

[Event "Chpt France Universitaire 2024"]
[Site "Bastia, France"]
[Date "2024.04.07"]
[Round "7.6"]
[White "Morison, Julien"]
[Black "Baroyan, Davit"]
[Result "0-1"]
[TimeControl "15min+5s"]
[WhiteElo "1926"]
[BlackElo "2118"]

1. e4 {[%clk 00:15:05]} c5 {[%clk 00:15:05]} {[%emt 00:00:04]} 2. b4 {[%clk
00:15:05]} {[%emt 00:00:01]} cxb4 {[%clk 00:15:05]} {[%emt 00:00:02]} 3. a3
{[%clk 00:15:05]} d5 {[%clk 00:15:05]} {[%emt 00:00:01]} 4. exd5 {[%clk
00:15:05]} Qxd5 {[%clk 00:15:05]} {[%emt 00:00:02]} 5. Nf3 {[%clk 00:15:05]} e5
{[%clk 00:15:05]} {[%emt 00:00:02]} 6. axb4 {[%clk 00:15:05]} {[%emt 00:00:01]}
Bxb4 {[%clk 00:15:05]} {[%emt 00:00:06]} 7. Ra3 {[%clk 00:14:43]} {[%emt
00:00:28]} Ne7 {[%clk 00:13:04]} {[%emt 00:02:05]} 8. Rd3 {[%clk 00:14:24]}
{[%emt 00:00:24]} Qa5 {[%clk 00:11:13]} {[%emt 00:01:56]} 9. Na3 {[%clk
00:12:24]} {[%emt 00:02:05]} e4 {[%clk 00:10:12]} {[%emt 00:01:06]} 10. Nc4
{[%clk 00:12:24]} {[%emt 00:00:04]} Qc7 {[%clk 00:10:05]} {[%emt 00:00:12]} 11.
Rb3 {[%clk 00:11:33]} {[%emt 00:00:56]} exf3 {[%clk 00:09:35]} {[%emt
00:00:35]} 12. Rxb4 {[%clk 00:11:11]} {[%emt 00:00:26]} Nbc6 {[%clk 00:09:06]}
{[%emt 00:00:34]} 13. Rb3 {[%clk 00:10:39]} {[%emt 00:00:36]} O-O {[%clk
00:08:57]} {[%emt 00:00:15]} 14. gxf3 {[%clk 00:10:22]} {[%emt 00:00:22]} Nd5
{[%clk 00:08:21]} {[%emt 00:00:41]} 15. f4 {[%clk 00:09:53]} {[%emt 00:00:34]}
Re8+ {[%clk 00:08:11]} {[%emt 00:00:15]} 16. Ne3 {[%clk 00:09:53]} {[%emt
00:00:02]} Nd4 {[%clk 00:08:05]} {[%emt 00:00:11]} 17. c3 {[%clk 00:06:53]}
{[%emt 00:03:05]} Nxb3 {[%clk 00:07:31]} {[%emt 00:00:39]} 18. Qxb3 {[%clk
00:06:53]} {[%emt 00:00:02]} Nxf4 {[%clk 00:07:18]} {[%emt 00:00:18]} 19. Rg1
{[%clk 00:06:37]} {[%emt 00:00:21]} Be6 {[%clk 00:06:50]} {[%emt 00:00:33]} 20.
Qa4 {[%clk 00:06:31]} {[%emt 00:00:11]} Rad8 {[%clk 00:06:33]} {[%emt
00:00:21]} 21. Bb5 {[%clk 00:06:20]} {[%emt 00:00:17]} Bd7 {[%clk 00:05:58]}
{[%emt 00:00:40]} 22. Bxd7 {[%clk 00:05:19]} {[%emt 00:01:07]} Rxd7 {[%clk
00:05:49]} {[%emt 00:00:13]} 23. Kd1 {[%clk 00:05:04]} {[%emt 00:00:20]} Nd3
{[%clk 00:04:38]} {[%emt 00:01:16]} 24. Qh4 {[%clk 00:04:44]} {[%emt 00:00:25]}
Qf4 {[%clk 00:04:13]} {[%emt 00:00:30]} 25. Ng4 {[%clk 00:03:34]} {[%emt
00:01:14]} Rd6 {[%clk 00:04:06]} {[%emt 00:00:13]} 26. c4 {[%clk 00:01:23]}
{[%emt 00:02:17]} Nxc1 {[%clk 00:03:46]} {[%emt 00:00:25]} 0-1

[Event "Chpt France Universitaire 2024"]
[Site "Bastia, France"]
[Date "2024.04.07"]
[Round "7.7"]
[White "Maache, Jawad"]
[Black "Rollot, Florence"]
[Result "1-0"]
[TimeControl "15min+5s"]
[WhiteElo "2154"]
[BlackElo "2010"]

1. d4 {[%clk 00:15:05]} {[%emt 00:00:02]} Nf6 {[%clk 00:15:05]} {[%emt
00:00:03]} 2. Nc3 {[%clk 00:15:05]} {[%emt 00:00:04]} c5 {[%clk 00:14:50]}
{[%emt 00:00:21]} 3. d5 {[%clk 00:15:05]} {[%emt 00:00:02]} d6 {[%clk
00:14:48]} {[%emt 00:00:06]} 4. e4 {[%clk 00:15:04]} {[%emt 00:00:06]} g6
{[%clk 00:14:40]} {[%emt 00:00:13]} 5. h3 {[%clk 00:14:41]} {[%emt 00:00:28]}
Bg7 {[%clk 00:14:40]} {[%emt 00:00:03]} 6. Nf3 {[%clk 00:14:41]} {[%emt
00:00:01]} O-O {[%clk 00:14:34]} {[%emt 00:00:11]} 7. Bf4 {[%clk 00:14:16]}
{[%emt 00:00:31]} Nbd7 {[%clk 00:14:01]} {[%emt 00:00:38]} 8. Be2 {[%clk
00:13:43]} {[%emt 00:00:38]} Nh5 {[%clk 00:13:27]} {[%emt 00:00:40]} 9. Bh2
{[%clk 00:13:43]} {[%emt 00:00:04]} Qa5 {[%clk 00:12:50]} {[%emt 00:00:42]} 10.
Qd2 {[%clk 00:13:35]} {[%emt 00:00:13]} a6 {[%clk 00:10:50]} {[%emt 00:02:06]}
11. Nd1 {[%clk 00:10:37]} {[%emt 00:03:03]} Qxd2+ {[%clk 00:09:43]} {[%emt
00:01:13]} 12. Nxd2 {[%clk 00:10:37]} {[%emt 00:00:01]} b5 {[%clk 00:09:22]}
{[%emt 00:00:26]} 13. c3 {[%clk 00:10:24]} {[%emt 00:00:17]} Nhf6 {[%clk
00:07:44]} {[%emt 00:01:44]} 14. Ne3 {[%clk 00:09:49]} {[%emt 00:00:39]} Rb8
{[%clk 00:07:19]} {[%emt 00:00:31]} 15. O-O {[%clk 00:09:02]} {[%emt 00:00:52]}
Rb6 {[%clk 00:05:39]} {[%emt 00:01:46]} 16. a4 {[%clk 00:08:06]} {[%emt
00:01:00]} Bh6 {[%clk 00:02:12]} {[%emt 00:03:32]} 17. axb5 {[%clk 00:07:27]}
{[%emt 00:00:45]} axb5 {[%clk 00:02:12]} {[%emt 00:00:01]} 18. Ra7 {[%clk
00:06:44]} {[%emt 00:00:47]} c4 {[%clk 00:02:11]} {[%emt 00:00:07]} 19. f4
{[%clk 00:04:35]} {[%emt 00:02:13]} Bb7 {[%clk 00:02:06]} {[%emt 00:00:10]} 20.
g4 {[%clk 00:04:13]} {[%emt 00:00:27]} Bg7 {[%clk 00:01:50]} {[%emt 00:00:20]}
21. g5 {[%clk 00:03:00]} {[%emt 00:01:18]} Nh5 {[%clk 00:00:47]} {[%emt
00:01:08]} 22. Nc2 {[%clk 00:02:42]} {[%emt 00:00:23]} Nc5 {[%clk 00:00:41]}
{[%emt 00:00:12]} 23. Kg2 {[%clk 00:01:50]} {[%emt 00:00:57]} h6 {[%clk
00:00:40]} {[%emt 00:00:06]} 24. gxh6 {[%clk 00:01:38]} {[%emt 00:00:17]} Bxh6
{[%clk 00:00:40]} {[%emt 00:00:01]} 25. Bxh5 {[%clk 00:01:36]} {[%emt
00:00:07]} gxh5 {[%emt 00:00:03]} 26. Bg1 {[%clk 00:01:30]} {[%emt 00:00:09]}
e6 {[%clk 00:00:40]} {[%emt 00:00:03]} 27. Nb4 {[%clk 00:01:08]} {[%emt
00:00:27]} exd5 {[%clk 00:00:32]} {[%emt 00:00:14]} 28. Nxd5 {[%clk 00:00:42]}
{[%emt 00:00:31]} Bxd5 {[%clk 00:00:32]} {[%emt 00:00:01]} 29. exd5 {[%clk
00:00:42]} {[%emt 00:00:01]} Re8 {[%clk 00:00:32]} {[%emt 00:00:05]} 30. Kf3
{[%clk 00:00:39]} {[%emt 00:00:07]} Rbb8 {[%clk 00:00:32]} {[%emt 00:00:03]} 31.
Bxc5 {[%clk 00:00:39]} {[%emt 00:00:04]} dxc5 {[%clk 00:00:32]} {[%emt
00:00:01]} 32. Ne4 {[%clk 00:00:39]} {[%emt 00:00:03]} Rbd8 {[%clk 00:00:32]}
{[%emt 00:00:05]} 33. Nf6+ {[%clk 00:00:39]} {[%emt 00:00:03]} Kf8 {[%clk
00:00:27]} {[%emt 00:00:10]} 34. Rg1 {[%clk 00:00:27]} {[%emt 00:00:16]} Bg7
{[%clk 00:00:16]} {[%emt 00:00:17]} 35. Nxe8 {[%clk 00:00:27]} {[%emt
00:00:03]} Rxe8 {[%clk 00:00:16]} {[%emt 00:00:01]} 36. d6 {[%clk 00:00:27]}
{[%emt 00:00:06]} Rd8 {[%clk 00:00:16]} 37. Rd1 {[%clk 00:00:22]} {[%emt
00:00:10]} Bf6 {[%clk 00:00:16]} {[%emt 00:00:04]} 38. Rd5 {[%clk 00:00:22]}
{[%emt 00:00:03]} Rc8 {[%clk 00:00:14]} {[%emt 00:00:06]} 39. Rf5 {[%clk
00:00:21]} {[%emt 00:00:06]} Bg7 {[%clk 00:00:14]} {[%emt 00:00:03]} 40. Rfxf7+
{[%clk 00:00:21]} {[%emt 00:00:02]} 1-0

[Event "Chpt France Universitaire 2024"]
[Site "Bastia, France"]
[Date "2024.04.07"]
[Round "7.8"]
[White "Arcelin, Gael"]
[Black "Pheng, Wissam"]
[Result "0-1"]
[TimeControl "15min+5s"]
[WhiteElo "2126"]
[BlackElo "1975"]

1. d4 {[%clk 00:14:22]} {[%emt 00:00:48]} d5 {[%clk 00:15:05]} {[%emt
00:00:05]} 2. c4 {[%clk 00:14:22]} {[%emt 00:00:04]} dxc4 {[%clk 00:15:05]}
{[%emt 00:00:01]} 3. Nf3 {[%clk 00:14:22]} {[%emt 00:00:02]} c6 {[%clk
00:15:05]} {[%emt 00:00:01]} 4. e3 {[%clk 00:13:24]} {[%emt 00:01:02]} Be6
{[%clk 00:15:05]} {[%emt 00:00:02]} 5. Nc3 {[%clk 00:13:05]} {[%emt 00:00:24]}
b5 {[%clk 00:15:05]} {[%emt 00:00:02]} 6. Ng5 {[%clk 00:12:37]} {[%emt
00:00:34]} Bd7 {[%clk 00:15:05]} {[%emt 00:00:02]} 7. a4 {[%clk 00:11:52]}
{[%emt 00:00:49]} e6 {[%clk 00:14:35]} {[%emt 00:00:35]} 8. Nf3 {[%clk
00:11:11]} {[%emt 00:00:46]} Nf6 {[%clk 00:13:25]} {[%emt 00:01:15]} 9. Ne5
{[%clk 00:10:08]} {[%emt 00:01:08]} b4 {[%clk 00:13:17]} {[%emt 00:00:13]} 10.
Na2 {[%clk 00:09:57]} {[%emt 00:00:15]} c5 {[%clk 00:13:17]} {[%emt 00:00:02]}
11. Bxc4 {[%clk 00:09:52]} {[%emt 00:00:10]} Nc6 {[%clk 00:13:10]} {[%emt
00:00:12]} 12. O-O {[%clk 00:09:27]} {[%emt 00:00:30]} Bd6 {[%clk 00:12:17]}
{[%emt 00:00:58]} 13. Nxd7 {[%clk 00:08:47]} {[%emt 00:00:45]} Qxd7 {[%clk
00:11:53]} {[%emt 00:00:29]} 14. dxc5 {[%clk 00:07:34]} {[%emt 00:01:18]} Bxc5
{[%clk 00:11:53]} {[%emt 00:00:04]} 15. Bb5 {[%clk 00:07:10]} {[%emt 00:00:29]}
a6 {[%clk 00:09:42]} {[%emt 00:02:17]} 16. Qxd7+ {[%clk 00:06:55]} {[%emt
00:00:19]} Kxd7 {[%clk 00:09:42]} {[%emt 00:00:01]} 17. Rd1+ {[%clk 00:06:55]}
Kc7 {[%clk 00:09:42]} {[%emt 00:00:01]} 18. Be2 {[%clk 00:06:33]} {[%emt
00:00:27]} Rhd8 {[%clk 00:09:16]} {[%emt 00:00:30]} 19. Bd2 {[%clk 00:06:33]}
a5 {[%clk 00:08:47]} {[%emt 00:00:35]} 20. Rac1 {[%clk 00:06:31]} {[%emt
00:00:06]} Kb6 {[%clk 00:08:36]} {[%emt 00:00:17]} 21. Be1 {[%clk 00:05:53]}
{[%emt 00:00:44]} Rac8 {[%clk 00:07:10]} {[%emt 00:01:31]} 22. Kf1 {[%clk
00:05:50]} {[%emt 00:00:07]} Ne5 {[%clk 00:06:40]} {[%emt 00:00:35]} 23. Bb5
{[%clk 00:03:37]} {[%emt 00:02:17]} Ne4 {[%clk 00:05:39]} {[%emt 00:01:06]} 24.
Rb1 {[%clk 00:01:38]} {[%emt 00:02:05]} Be7 {[%clk 00:05:21]} {[%emt 00:00:23]}
25. Rxd8 {[%clk 00:01:15]} {[%emt 00:00:28]} Rxd8 {[%clk 00:04:56]} {[%emt
00:00:30]} 26. Rc1 {[%clk 00:01:15]} {[%emt 00:00:05]} Nc5 {[%clk 00:04:48]}
{[%emt 00:00:13]} 27. Ke2 {[%clk 00:00:54]} {[%emt 00:00:26]} Ned3 {[%clk
00:03:06]} {[%emt 00:01:47]} 28. Rb1 {[%clk 00:00:54]} {[%emt 00:00:04]} Nxe1
{[%clk 00:01:38]} {[%emt 00:01:32]} 29. Kxe1 {[%clk 00:00:54]} {[%emt
00:00:02]} Nb3 {[%clk 00:01:19]} {[%emt 00:00:24]} 30. Rd1 {[%clk 00:00:30]}
{[%emt 00:00:30]} Rxd1+ {[%clk 00:00:54]} {[%emt 00:00:30]} 31. Kxd1 {[%clk
00:00:30]} Bf6 {[%clk 00:00:51]} {[%emt 00:00:07]} 32. Kc2 {[%clk 00:00:30]}
Nc5 {[%clk 00:00:40]} {[%emt 00:00:17]} 33. Nc1 {[%clk 00:00:30]} Ne4 {[%clk
00:00:40]} {[%emt 00:00:03]} 34. f3 {[%clk 00:00:26]} {[%emt 00:00:09]} Nd6
{[%clk 00:00:40]} {[%emt 00:00:02]} 35. Bd3 {[%clk 00:00:26]} {[%emt 00:00:01]}
g6 {[%clk 00:00:27]} {[%emt 00:00:17]} 36. Nb3 {[%clk 00:00:26]} {[%emt
00:00:05]} Nb7 {[%clk 00:00:27]} 37. Nd4 {[%clk 00:00:24]} {[%emt 00:00:06]}
Nc5 {[%clk 00:00:16]} {[%emt 00:00:17]} 38. Bb5 {[%clk 00:00:24]} Be5 {[%clk
00:00:07]} {[%emt 00:00:14]} 39. g3 {[%clk 00:00:23]} {[%emt 00:00:06]} f6
{[%clk 00:00:07]} {[%emt 00:00:02]} 40. Ne2 {[%clk 00:00:13]} {[%emt 00:00:15]}
b3+ {[%clk 00:00:07]} 41. Kc1 {[%clk 00:00:13]} {[%emt 00:00:02]} Bd6 {[%clk
00:00:07]} {[%emt 00:00:01]} 42. Nc3 {[%clk 00:00:13]} {[%emt 00:00:02]} Be7
{[%clk 00:00:07]} {[%emt 00:00:03]} 43. Kd2 {[%clk 00:00:13]} h6 {[%clk
00:00:07]} {[%emt 00:00:03]} 44. Bc4 {[%clk 00:00:13]} {[%emt 00:00:01]} Kc6
{[%clk 00:00:07]} {[%emt 00:00:02]} 45. Bb5+ {[%clk 00:00:08]} {[%emt
00:00:11]} Kb6 {[%clk 00:00:07]} 46. Ke2 {[%clk 00:00:08]} {[%emt 00:00:01]} g5
{[%clk 00:00:07]} 47. e4 {[%clk 00:00:08]} {[%emt 00:00:01]} Bd6 {[%clk
00:00:07]} {[%emt 00:00:01]} 48. Ke3 {[%clk 00:00:08]} Be5 {[%clk 00:00:07]}
{[%emt 00:00:01]} 49. Bc4 {[%clk 00:00:08]} {[%emt 00:00:02]} Bxc3 {[%clk
00:00:07]} {[%emt 00:00:01]} 50. bxc3 {[%clk 00:00:08]} b2 {[%clk 00:00:07]}
{[%emt 00:00:01]} 51. Ba2 {[%clk 00:00:08]} {[%emt 00:00:02]} Nxa4 {[%emt
00:00:01]} 52. Kd3 e5 {[%clk 00:00:07]} {[%emt 00:00:01]} 53. Kc2 {[%clk
00:00:08]} Kc5 {[%emt 00:00:03]} 54. Bb3 {[%clk 00:00:08]} {[%emt 00:00:02]}
b1=Q+ {[%clk 00:00:07]} {[%emt 00:00:03]} 55. Kxb1 {[%clk 00:00:08]} {[%emt
00:00:01]} Nxc3+ {[%clk 00:00:07]} 56. Kc2 Ne2 {[%emt 00:00:03]} 57. Kd2 {[%clk
00:00:07]} {[%emt 00:00:06]} Nd4 {[%clk 00:00:07]} 58. Ba4 {[%clk 00:00:07]}
{[%emt 00:00:01]} Kb4 {[%clk 00:00:07]} 59. Be8 {[%clk 00:00:07]} {[%emt
00:00:01]} a4 {[%clk 00:00:07]} 60. Kc1 {[%clk 00:00:07]} Kb3 {[%clk 00:00:07]}
61. f4 {[%clk 00:00:07]} {[%emt 00:00:02]} a3 {[%clk 00:00:07]} {[%emt
00:00:01]} 62. Kb1 {[%clk 00:00:07]} {[%emt 00:00:02]} a2+ {[%clk 00:00:07]} 63.
Ka1 {[%clk 00:00:07]} Nc2# {[%clk 00:00:07]} 0-1